[Event "Torneo Nuevo Centro. Jornada 11"]
[Site "Chess.com"]
[Date "2020.08.28"]
[Round "7"]
[White "Blanco Solaz, Ramón"]
[Black "Roca Cruz, Rafael"]
[Result "1-0"]
[WhiteElo "1966"]
[BlackElo "1803"]
[TimeControl "180+2"]
[EndTime "11:43:37 PDT"]
[Termination "Victoria de Rbs77 por abandono"]

1. Nf3 {[%clk 0:02:54.3]} 1... b5 {[%clk 0:03:00.7]} 2. b3 {[%clk 0:02:49.2]}
2... Bb7 {[%clk 0:03:00.6]} 3. Bb2 {[%clk 0:02:48.3]} 3... e6 {[%clk 0:03:01.6]}
4. g3 {[%clk 0:02:48.2]} 4... Nf6 {[%clk 0:03:02.4]} 5. Bg2 {[%clk 0:02:49.4]}
5... Be7 {[%clk 0:03:03.5]} 6. O-O {[%clk 0:02:50.5]} 6... O-O {[%clk
0:03:04.6]} 7. d3 {[%clk 0:02:52]} 7... d6 {[%clk 0:03:05.6]} 8. Nbd2 {[%clk
0:02:53]} 8... Nbd7 {[%clk 0:03:06.6]} 9. e4 {[%clk 0:02:54.1]} 9... c5 {[%clk
0:03:07]} 10. Qe2 {[%clk 0:02:49.2]} 10... Rc8 {[%clk 0:02:57.2]} 11. Rad1
{[%clk 0:02:48.7]} 11... a6 {[%clk 0:02:58]} 12. c3 {[%clk 0:02:40.5]} 12... Qc7
{[%clk 0:02:36.3]} 13. Rc1 {[%clk 0:02:36.9]} 13... Qa5 {[%clk 0:02:11]} 14. a3
{[%clk 0:02:33.7]} 14... Qb6 {[%clk 0:02:02.8]} 15. d4 {[%clk 0:02:27.8]} 15...
cxd4 {[%clk 0:01:55.8]} 16. cxd4 {[%clk 0:02:28.7]} 16... Rxc1 {[%clk
0:01:56.3]} 17. Rxc1 {[%clk 0:02:30.6]} 17... Rc8 {[%clk 0:01:56.7]} 18. Rxc8+
{[%clk 0:02:30.7]} 18... Bxc8 {[%clk 0:01:57.8]} 19. Nf1 {[%clk 0:02:18.4]}
19... Qc7 {[%clk 0:01:58.1]} 20. Ne3 {[%clk 0:02:18.5]} 20... Nxe4 {[%clk
0:01:51.2]} 21. h4 {[%clk 0:02:12.6]} 21... Ndf6 {[%clk 0:01:22]} 22. Kh2 {[%clk
0:02:00.9]} 22... d5 {[%clk 0:01:22.9]} 23. Ne5 {[%clk 0:02:01.2]} 23... Bd6
{[%clk 0:01:23.7]} 24. f4 {[%clk 0:02:01.7]} 24... Nc3 {[%clk 0:01:07.1]} 25.
Qe1 {[%clk 0:02:02.4]} 25... Nce4 {[%clk 0:00:55.6]} 26. Nd3 {[%clk 0:02:02.6]}
26... h6 {[%clk 0:00:46]} 27. b4 {[%clk 0:02:02.7]} 27... Nh5 {[%clk 0:00:39.5]}
28. Nf1 {[%clk 0:01:56.7]} 28... Qc2 {[%clk 0:00:39.9]} 29. Qe3 {[%clk
0:01:52.5]} 29... g5 {[%clk 0:00:24.8]} 30. Bc1 {[%clk 0:01:44.3]} 30... gxf4
{[%clk 0:00:18.3]} 31. gxf4 {[%clk 0:01:46.2]} 31... Nhf6 {[%clk 0:00:12.8]} 32.
Kh1 {[%clk 0:01:47.1]} 32... Ng4 {[%clk 0:00:12.3]} 33. Qf3 {[%clk 0:01:45]}
33... Nef2+ {[%clk 0:00:07.3]} 34. Nxf2 {[%clk 0:01:45.4]} 34... Nxf2+ {[%clk
0:00:06]} 35. Kg1 {[%clk 0:01:46.2]} 35... Qxc1 {[%clk 0:00:05]} 36. Qxf2 {[%clk
0:01:47.5]} 36... Qxa3 {[%clk 0:00:05.6]} 37. Qg3+ {[%clk 0:01:48.5]} 37... Kf8
{[%clk 0:00:06.3]} 38. Qg4 {[%clk 0:01:47.8]} 38... Qxb4 {[%clk 0:00:06.4]} 39.
Bxd5 {[%clk 0:01:45.1]} 39... Qxd4+ {[%clk 0:00:07.2]} 40. Kg2 {[%clk
0:01:45.4]} 40... Qxd5+ {[%clk 0:00:08.5]} 41. Kh3 {[%clk 0:01:47.1]} 41... Qd3+
{[%clk 0:00:08]} 42. Ng3 {[%clk 0:01:47.6]} 42... Bd7 {[%clk 0:00:06.8]} 43. Qh5
{[%clk 0:01:47.9]} 43... Qg6 {[%clk 0:00:05.4]} 44. Qd1 {[%clk 0:01:48.2]} 44...
Bxf4 {[%clk 0:00:05.3]} 45. Nf1 {[%clk 0:01:48.2]} 45... e5+ {[%clk 0:00:06.5]}
46. Qxd7 {[%clk 0:01:48.2]} 46... Qd3+ {[%clk 0:00:05.3]} 47. Qxd3 {[%clk
0:01:48.1]} 47... Kg7 {[%clk 0:00:05.8]} 48. Qe4 {[%clk 0:01:48.8]} 1

[Event "Torneo Nuevo Centro. Jornada 11"]
[Site "Chess.com"]
[Date "2020.08.28"]
[Round "7"]
[White "Carbonell Bofill, Carlos Eloy"]
[Black "Lloret Ramis, Juan José"]
[Result "1/2-1/2"]
[WhiteElo "1911"]
[BlackElo "1976"]
[TimeControl "180+2"]
[EndTime "11:43:44 PDT"]
[Termination "Tablas por repeticiÃ³n"]

1. d4 {[%clk 0:02:58.9]} 1... d5 {[%clk 0:02:59.6]} 2. Nf3 {[%clk 0:02:59.1]}
2... e6 {[%clk 0:03:00.5]} 3. Bg5 {[%clk 0:02:58.8]} 3... Be7 {[%clk 0:03:00.1]}
4. h4 {[%clk 0:02:58.9]} 4... h6 {[%clk 0:02:59.8]} 5. Bxe7 {[%clk 0:02:57.5]}
5... Qxe7 {[%clk 0:03:00.6]} 6. Nbd2 {[%clk 0:02:59]} 6... Nf6 {[%clk
0:02:59.8]} 7. c3 {[%clk 0:02:59.8]} 7... c5 {[%clk 0:03:00.8]} 8. Qc2 {[%clk
0:03:00.5]} 8... Nc6 {[%clk 0:03:01.1]} 9. dxc5 {[%clk 0:02:59.4]} 9... Qxc5
{[%clk 0:03:01.3]} 10. e4 {[%clk 0:03:00.3]} 10... dxe4 {[%clk 0:02:51.8]} 11.
Nxe4 {[%clk 0:03:02.2]} 11... Nxe4 {[%clk 0:02:51.7]} 12. Qxe4 {[%clk
0:03:04.1]} 12... Bd7 {[%clk 0:02:51.2]} 13. Bd3 {[%clk 0:02:55.6]} 13... O-O-O
{[%clk 0:02:46.4]} 14. O-O {[%clk 0:02:50.6]} 14... f5 {[%clk 0:02:24.2]} 15.
Qe2 {[%clk 0:02:44.3]} 15... e5 {[%clk 0:02:22.3]} 16. b4 {[%clk 0:02:31.5]}
16... Qd6 {[%clk 0:02:04.2]} 17. b5 {[%clk 0:02:28.9]} 17... e4 {[%clk
0:02:01.8]} 18. bxc6 {[%clk 0:02:29.3]} 18... Bxc6 {[%clk 0:02:03]} 19. Nd4
{[%clk 0:02:23.4]} 19... exd3 {[%clk 0:01:57.6]} 20. Qxd3 {[%clk 0:02:25.3]}
20... f4 {[%clk 0:01:50.9]} 21. Rfd1 {[%clk 0:02:04.8]} 21... g5 {[%clk
0:01:48]} 22. h5 {[%clk 0:01:47.5]} 22... g4 {[%clk 0:01:34]} 23. Qf5+ {[%clk
0:01:25.2]} 23... Kb8 {[%clk 0:01:00.8]} 24. Nxc6+ {[%clk 0:01:14.8]} 24... Qxc6
{[%clk 0:01:01.1]} 25. Qxf4+ {[%clk 0:01:14]} 25... Ka8 {[%clk 0:01:01.9]} 26.
Rxd8+ {[%clk 0:00:59.9]} 26... Rxd8 {[%clk 0:01:02.6]} 27. Qe3 {[%clk
0:00:46.9]} 27... Rc8 {[%clk 0:00:56]} 28. Rc1 {[%clk 0:00:35.9]} 28... a6
{[%clk 0:00:56.8]} 29. c4 {[%clk 0:00:35.7]} 29... Qc5 {[%clk 0:00:46]} 30. Qxh6
{[%clk 0:00:22.6]} 30... g3 {[%clk 0:00:46.5]} 31. Qe3 {[%clk 0:00:20.7]} 31...
gxf2+ {[%clk 0:00:45.2]} 32. Qxf2 {[%clk 0:00:21.6]} 32... Qxh5 {[%clk
0:00:45.5]} 33. Rc3 {[%clk 0:00:21.4]} 33... Rh8 {[%clk 0:00:44.6]} 34. Rh3
{[%clk 0:00:21.6]} 34... Qd1+ {[%clk 0:00:45.5]} 35. Qf1 {[%clk 0:00:22.1]}
35... Qd4+ {[%clk 0:00:46.3]} 36. Qf2 {[%clk 0:00:22.9]} 36... Qd1+ {[%clk
0:00:32.5]} 37. Qf1 {[%clk 0:00:23.6]} 37... Qd4+ {[%clk 0:00:29.8]} 38. Qf2
{[%clk 0:00:24.4]} 38... Qd1+ {[%clk 0:00:29.5]} 1/2-1

[Event "Torneo Nuevo Centro. Jornada 11"]
[Site "Chess.com"]
[Date "2020.08.28"]
[Round "7"]
[White "Aguado, Pablo Luis"]
[Black "Cayon Pelaez, Pablo"]
[Result "1/2-1/2"]
[WhiteElo "1927"]
[BlackElo "1803"]
[TimeControl "180+2"]
[EndTime "11:43:58 PDT"]
[Termination "Tablas por repeticiÃ³n"]

1. d4 {[%clk 0:03:01.9]} 1... d5 {[%clk 0:03:00.8]} 2. c4 {[%clk 0:03:02.2]}
2... c6 {[%clk 0:03:01.9]} 3. Nc3 {[%clk 0:03:02.6]} 3... Nf6 {[%clk 0:03:03.1]}
4. e3 {[%clk 0:02:59.5]} 4... e6 {[%clk 0:03:02.3]} 5. Nf3 {[%clk 0:03:00.1]}
5... Bd6 {[%clk 0:03:02.7]} 6. Qc2 {[%clk 0:03:00.7]} 6... O-O {[%clk
0:03:02.4]} 7. b3 {[%clk 0:02:57.5]} 7... Nbd7 {[%clk 0:03:03.2]} 8. Bd3 {[%clk
0:02:58.7]} 8... h6 {[%clk 0:03:03.5]} 9. O-O {[%clk 0:02:59.8]} 9... Re8 {[%clk
0:03:03.1]} 10. Bb2 {[%clk 0:03:00.7]} 10... Qe7 {[%clk 0:03:03.6]} 11. e4
{[%clk 0:03:01.5]} 11... dxe4 {[%clk 0:03:00.3]} 12. Nxe4 {[%clk 0:03:03.4]}
12... Nxe4 {[%clk 0:03:01.3]} 13. Bxe4 {[%clk 0:03:03.8]} 13... Nf6 {[%clk
0:03:02.8]} 14. Bd3 {[%clk 0:02:59.7]} 14... b6 {[%clk 0:02:40.1]} 15. Rfe1
{[%clk 0:02:58.5]} 15... Bb7 {[%clk 0:02:38.4]} 16. Rad1 {[%clk 0:02:52.9]}
16... Qc7 {[%clk 0:02:25]} 17. Qe2 {[%clk 0:02:48.5]} 17... c5 {[%clk
0:02:18.5]} 18. dxc5 {[%clk 0:02:32.6]} 18... Qxc5 {[%clk 0:01:59.2]} 19. Bxf6
{[%clk 0:02:22.5]} 19... gxf6 {[%clk 0:02:01.1]} 20. Bb1 {[%clk 0:02:04.2]}
20... Rad8 {[%clk 0:01:59.8]} 21. Nd4 {[%clk 0:01:48.7]} 21... Qg5 {[%clk
0:01:53.3]} 22. Nf3 {[%clk 0:01:41.4]} 22... Qh5 {[%clk 0:01:47.9]} 23. Be4
{[%clk 0:01:35.9]} 23... Bxe4 {[%clk 0:01:14.3]} 24. Qxe4 {[%clk 0:01:37.8]}
24... Bxh2+ {[%clk 0:01:11.8]} 25. Kf1 {[%clk 0:01:25.8]} 25... Bc7 {[%clk
0:00:57.4]} 26. Qc6 {[%clk 0:01:09]} 26... Rxd1 {[%clk 0:00:35.1]} 27. Qxe8+
{[%clk 0:01:07]} 27... Kg7 {[%clk 0:00:35.9]} 28. Rxd1 {[%clk 0:01:07.7]} 28...
Bf4 {[%clk 0:00:28.6]} 29. Kg1 {[%clk 0:00:57]} 29... e5 {[%clk 0:00:28.4]} 30.
Re1 {[%clk 0:00:21.2]} 30... f5 {[%clk 0:00:26.9]} 31. Rxe5 {[%clk 0:00:20.1]}
31... Bxe5 {[%clk 0:00:22.4]} 32. Qxe5+ {[%clk 0:00:22]} 32... Kg8 {[%clk
0:00:21.1]} 33. Qe8+ {[%clk 0:00:21.5]} 33... Kg7 {[%clk 0:00:22]} 34. Qe5+
{[%clk 0:00:22.2]} 34... Kg8 {[%clk 0:00:23.2]} 35. Nd4 {[%clk 0:00:22]} 35...
Qd1+ {[%clk 0:00:21.7]} 36. Kh2 {[%clk 0:00:23.2]} 36... Qh5+ {[%clk 0:00:22.6]}
37. Kg3 {[%clk 0:00:19.3]} 37... Qg4+ {[%clk 0:00:23.7]} 38. Kh2 {[%clk
0:00:20.3]} 38... Qh5+ {[%clk 0:00:25]} 39. Kg1 {[%clk 0:00:21.1]} 39... Qd1+
{[%clk 0:00:26.1]} 40. Kh2 {[%clk 0:00:21.6]} 40... Qh5+ {[%clk 0:00:26.9]}
1/2-1

[Event "Torneo Nuevo Centro. Jornada 11"]
[Site "Chess.com"]
[Date "2020.08.28"]
[Round "7"]
[White "Aymerich Rosell, Pablo"]
[Black "Gómez Alonso, Óscar"]
[Result "1-0"]
[WhiteElo "2002"]
[BlackElo "1802"]
[TimeControl "180+2"]
[EndTime "11:44:05 PDT"]
[Termination "Victoria de jasikevic por tiempo"]

1. e4 {[%clk 0:03:01.9]} 1... c5 {[%clk 0:03:00.6]} 2. Nf3 {[%clk 0:03:01.9]}
2... e6 {[%clk 0:03:01]} 3. d4 {[%clk 0:03:00.2]} 3... cxd4 {[%clk 0:03:02.9]}
4. Nxd4 {[%clk 0:03:01.3]} 4... a6 {[%clk 0:03:04.2]} 5. Nc3 {[%clk 0:03:00]}
5... Qc7 {[%clk 0:03:04.5]} 6. Bd3 {[%clk 0:02:59.7]} 6... Nf6 {[%clk
0:02:59.4]} 7. f4 {[%clk 0:02:57.4]} 7... b5 {[%clk 0:02:55.1]} 8. e5 {[%clk
0:02:46.9]} 8... Ng8 {[%clk 0:02:52.7]} 9. Qg4 {[%clk 0:02:42.3]} 9... Bb7
{[%clk 0:02:47.1]} 10. Be3 {[%clk 0:02:39.9]} 10... Nh6 {[%clk 0:02:41.4]} 11.
Qg3 {[%clk 0:02:36]} 11... Nc6 {[%clk 0:02:33.4]} 12. Ndxb5 {[%clk 0:02:13.9]}
12... axb5 {[%clk 0:02:27.6]} 13. Nxb5 {[%clk 0:02:14.6]} 13... Qa5+ {[%clk
0:02:27.9]} 14. Bd2 {[%clk 0:02:14.5]} 14... Qb6 {[%clk 0:02:15.6]} 15. Nd6+
{[%clk 0:02:05.4]} 15... Bxd6 {[%clk 0:02:12.3]} 16. Qxg7 {[%clk 0:01:47.8]}
16... Bf8 {[%clk 0:01:46.3]} 17. Qxh8 {[%clk 0:01:47.1]} 17... Qxb2 {[%clk
0:01:39.9]} 18. Rd1 {[%clk 0:01:44.4]} 18... Nd4 {[%clk 0:01:33.5]} 19. O-O
{[%clk 0:01:37.2]} 19... O-O-O {[%clk 0:00:58.6]} 20. Qxh7 {[%clk 0:01:22.8]}
20... Qxa2 {[%clk 0:00:52.4]} 21. Be4 {[%clk 0:01:15.8]} 21... Nc6 {[%clk
0:00:44.7]} 22. Rb1 {[%clk 0:01:05.8]} 22... Bc5+ {[%clk 0:00:41.2]} 23. Kh1
{[%clk 0:01:05.6]} 23... Ng4 {[%clk 0:00:40]} 24. Qh4 {[%clk 0:00:59.3]} 24...
Qa7 {[%clk 0:00:37]} 25. Qxg4 {[%clk 0:00:43.9]} 25... Ba6 {[%clk 0:00:28.8]}
26. Ra1 {[%clk 0:00:39.6]} 26... Qb6 {[%clk 0:00:29.3]} 27. Rfb1 {[%clk
0:00:38.9]} 27... Bb5 {[%clk 0:00:24.9]} 28. Bd3 {[%clk 0:00:32]} 28... Nd4
{[%clk 0:00:16.8]} 29. c4 {[%clk 0:00:29.6]} 29... Qc6 {[%clk 0:00:08.6]} 30.
cxb5 {[%clk 0:00:27.5]} 30... Qd5 {[%clk 0:00:08.3]} 31. Be3 {[%clk 0:00:17.9]}
31... Rh8 {[%clk 0:00:07.9]} 32. Rc1 {[%clk 0:00:14.7]} 32... Kb7 {[%clk
0:00:04.2]} 33. h3 {[%clk 0:00:15.4]} 1

[Event "Torneo Nuevo Centro. Jornada 11"]
[Site "Chess.com"]
[Date "2020.08.28"]
[Round "7"]
[White "Muñoz Pantoja, Miguel"]
[Black "Macias Pino, Diego"]
[Result "1-0"]
[WhiteElo "2484"]
[BlackElo "2254"]
[TimeControl "180+2"]
[EndTime "11:44:22 PDT"]
[Termination "Victoria de Indalsa por abandono"]

1. e4 {[%clk 0:03:01.9]} 1... c6 {[%clk 0:02:55.1]} 2. Nc3 {[%clk 0:03:01.7]}
2... d5 {[%clk 0:02:57]} 3. Nf3 {[%clk 0:03:03.1]} 3... dxe4 {[%clk 0:02:54.4]}
4. Nxe4 {[%clk 0:03:03.8]} 4... Nf6 {[%clk 0:02:50]} 5. Qe2 {[%clk 0:03:00.3]}
5... Nxe4 {[%clk 0:02:48.4]} 6. Qxe4 {[%clk 0:03:01]} 6... Nd7 {[%clk
0:02:50.3]} 7. Bc4 {[%clk 0:03:01.2]} 7... Nf6 {[%clk 0:02:51.4]} 8. Ne5 {[%clk
0:03:00.3]} 8... e6 {[%clk 0:02:50.9]} 9. Qe2 {[%clk 0:03:01]} 9... Bd6 {[%clk
0:02:48.9]} 10. d4 {[%clk 0:03:01.8]} 10... O-O {[%clk 0:02:48.5]} 11. c3 {[%clk
0:03:00.1]} 11... c5 {[%clk 0:02:49.4]} 12. dxc5 {[%clk 0:03:00.4]} 12... Bxc5
{[%clk 0:02:51.3]} 13. Bg5 {[%clk 0:03:01.4]} 13... Be7 {[%clk 0:02:22.5]} 14.
O-O {[%clk 0:02:49.9]} 14... Nd5 {[%clk 0:02:12.9]} 15. Bxe7 {[%clk 0:02:46.2]}
15... Nxe7 {[%clk 0:02:09]} 16. Rad1 {[%clk 0:02:44.6]} 16... Qc7 {[%clk
0:02:09.6]} 17. Bd3 {[%clk 0:02:42.8]} 17... Nd5 {[%clk 0:01:52.2]} 18. Be4
{[%clk 0:02:16.4]} 18... Nf6 {[%clk 0:01:09.3]} 19. Bc2 {[%clk 0:02:10.1]} 19...
b6 {[%clk 0:00:57.1]} 20. Rd4 {[%clk 0:01:49.3]} 20... Bb7 {[%clk 0:00:49.2]}
21. Rfd1 {[%clk 0:01:49.7]} 21... Rfd8 {[%clk 0:00:45.1]} 22. Bb3 {[%clk
0:01:49.5]} 22... g6 {[%clk 0:00:37.7]} 23. Rxd8+ {[%clk 0:01:05.1]} 23... Rxd8
{[%clk 0:00:39.6]} 24. Rxd8+ {[%clk 0:01:06.1]} 24... Qxd8 {[%clk 0:00:41.5]}
25. Nxf7 {[%clk 0:01:06.9]} 25... Kxf7 {[%clk 0:00:30]} 26. Qxe6+ {[%clk
0:01:07.6]} 26... Kg7 {[%clk 0:00:30.9]} 27. Qf7+ {[%clk 0:01:08.6]} 27... Kh6
{[%clk 0:00:32.2]} 28. Qxb7 {[%clk 0:01:09.6]} 28... Qd2 {[%clk 0:00:33]} 29. g3
{[%clk 0:00:52.6]} 29... Qxb2 {[%clk 0:00:34.2]} 30. Qf3 {[%clk 0:00:52.1]}
30... Kg7 {[%clk 0:00:27]} 31. Kg2 {[%clk 0:00:41.5]} 31... h5 {[%clk
0:00:27.8]} 32. h3 {[%clk 0:00:42.3]} 32... a5 {[%clk 0:00:27]} 33. Qb7+ {[%clk
0:00:40.7]} 33... Kh6 {[%clk 0:00:27.9]} 34. Qxb6 {[%clk 0:00:37.2]} 34... Qxc3
{[%clk 0:00:28.4]} 35. Qd6 {[%clk 0:00:26]} 35... Qb2 {[%clk 0:00:23.7]} 36.
Qf4+ {[%clk 0:00:20.6]} 36... Kg7 {[%clk 0:00:24.9]} 37. g4 {[%clk 0:00:21.4]}
37... hxg4 {[%clk 0:00:24.4]} 38. hxg4 {[%clk 0:00:22.6]} 38... g5 {[%clk
0:00:09.4]} 39. Qxg5+ {[%clk 0:00:22.9]} 39... Kh7 {[%clk 0:00:11]} 40. Qf5+
{[%clk 0:00:23.3]} 40... Kg7 {[%clk 0:00:11.9]} 41. g5 {[%clk 0:00:24.6]} 1

[Event "Torneo Nuevo Centro. Jornada 11"]
[Site "Chess.com"]
[Date "2020.08.28"]
[Round "7"]
[White "Sos Andreu, Eric"]
[Black "Fenollar Jorda, Manolo"]
[Result "0-1"]
[WhiteElo "2505"]
[BlackElo "2503"]
[TimeControl "180+2"]
[EndTime "11:44:41 PDT"]
[Termination "Victoria de Cucudrulu por abandono"]

1. c4 {[%clk 0:03:00.8]} 1... c6 {[%clk 0:03:01.4]} 2. e4 {[%clk 0:03:01.7]}
2... d5 {[%clk 0:03:03.3]} 3. exd5 {[%clk 0:03:03.6]} 3... cxd5 {[%clk
0:03:04.8]} 4. d4 {[%clk 0:03:05.2]} 4... Nf6 {[%clk 0:03:05.9]} 5. Nc3 {[%clk
0:03:05.5]} 5... e6 {[%clk 0:03:07.4]} 6. Nf3 {[%clk 0:03:03.7]} 6... Nc6 {[%clk
0:03:08]} 7. c5 {[%clk 0:03:03]} 7... a6 {[%clk 0:03:01]} 8. Bd3 {[%clk
0:02:58.9]} 8... Be7 {[%clk 0:03:02]} 9. O-O {[%clk 0:02:59.1]} 9... O-O {[%clk
0:03:01.4]} 10. Rb1 {[%clk 0:02:59.2]} 10... Qc7 {[%clk 0:02:50]} 11. Re1 {[%clk
0:02:57.6]} 11... b6 {[%clk 0:02:37.3]} 12. b4 {[%clk 0:02:53.4]} 12... bxc5
{[%clk 0:02:37.6]} 13. bxc5 {[%clk 0:02:54.5]} 13... Nxd4 {[%clk 0:02:09.1]} 14.
Nxd4 {[%clk 0:02:50.6]} 14... Bxc5 {[%clk 0:02:10.7]} 15. Nf3 {[%clk 0:02:22.9]}
15... Bd7 {[%clk 0:02:09.5]} 16. Bd2 {[%clk 0:02:05.8]} 16... Rfb8 {[%clk
0:01:53.5]} 17. Rc1 {[%clk 0:02:06]} 17... Qa7 {[%clk 0:01:53.2]} 18. Qe2 {[%clk
0:01:58.5]} 18... Rb2 {[%clk 0:01:49.1]} 19. Rf1 {[%clk 0:01:37.2]} 19... Rab8
{[%clk 0:01:43.2]} 20. Ne5 {[%clk 0:01:30.6]} 20... Be8 {[%clk 0:01:41.4]} 21.
Rb1 {[%clk 0:01:22.1]} 21... h6 {[%clk 0:01:38.4]} 22. h3 {[%clk 0:01:04.1]}
22... Bd4 {[%clk 0:01:27.5]} 23. Rxb2 {[%clk 0:00:44.4]} 23... Rxb2 {[%clk
0:01:27.3]} 24. Nd1 {[%clk 0:00:13.7]} 24... Rxa2 {[%clk 0:01:23.7]} 25. Nf3
{[%clk 0:00:14.8]} 25... Bc5 {[%clk 0:01:14.5]} 26. Bb1 {[%clk 0:00:15.8]} 26...
Ra3 {[%clk 0:01:05.2]} 27. Bc1 {[%clk 0:00:14.4]} 27... Bb5 {[%clk 0:00:58.2]}
28. Qc2 {[%clk 0:00:08.9]} 28... Bd3 {[%clk 0:00:53.9]} 29. Qd2 {[%clk
0:00:05.3]} 29... Bxb1 {[%clk 0:00:51.5]} 30. Bxa3 {[%clk 0:00:06.5]} 30... Bxa3
{[%clk 0:00:52.7]} 31. Ne3 {[%clk 0:00:04.2]} 31... Be4 {[%clk 0:00:50.5]} 32.
Ne5 {[%clk 0:00:04]} 32... Bd6 {[%clk 0:00:51.1]} 33. N5g4 {[%clk 0:00:04.4]}
33... Nxg4 {[%clk 0:00:50.3]} 34. Nxg4 {[%clk 0:00:06.3]} 34... a5 {[%clk
0:00:50.4]} 35. Qc1 {[%clk 0:00:06.3]} 35... a4 {[%clk 0:00:45.9]} 36. Qc8+
{[%clk 0:00:07.3]} 36... Kh7 {[%clk 0:00:45.5]} 37. Kh1 {[%clk 0:00:05.3]} 37...
a3 {[%clk 0:00:45]} 38. f3 {[%clk 0:00:06.8]} 38... Bd3 {[%clk 0:00:41.8]} 39.
Ra1 {[%clk 0:00:06]} 39... a2 {[%clk 0:00:42.1]} 40. Qc3 {[%clk 0:00:06.6]}
40... Bb1 {[%clk 0:00:32.3]} 41. Qb2 {[%clk 0:00:07.7]} 41... Qb8 {[%clk
0:00:28.7]} 42. Qc3 {[%clk 0:00:04.6]} 42... h5 {[%clk 0:00:25.5]} 43. Rxa2
{[%clk 0:00:04.5]} 43... Bxa2 {[%clk 0:00:24.3]} 44. Qc2+ {[%clk 0:00:05.9]}
44... Kg8 {[%clk 0:00:23.1]} 45. Qxa2 {[%clk 0:00:04.9]} 45... hxg4 {[%clk
0:00:23.6]} 46. hxg4 {[%clk 0:00:06.8]} 0

[Event "Torneo Nuevo Centro. Jornada 11"]
[Site "Chess.com"]
[Date "2020.08.28"]
[Round "7"]
[White "Fente Fernandez, Jose Ignacio"]
[Black "Serrano Requena, Guillem"]
[Result "0-1"]
[WhiteElo "1533"]
[BlackElo "1338"]
[TimeControl "180+2"]
[EndTime "11:44:43 PDT"]
[Termination "Victoria de Guily351 por tiempo"]

1. e4 {[%clk 0:03:01.9]} 1... c5 {[%clk 0:02:54.6]} 2. Nf3 {[%clk 0:02:57.8]}
2... g6 {[%clk 0:02:54.2]} 3. d4 {[%clk 0:02:12]} 3... cxd4 {[%clk 0:02:52.5]}
4. Nxd4 {[%clk 0:02:13.9]} 4... Bg7 {[%clk 0:02:53.3]} 5. Nc3 {[%clk 0:02:10.2]}
5... Nc6 {[%clk 0:02:53.9]} 6. Nxc6 {[%clk 0:02:06.5]} 6... bxc6 {[%clk
0:02:54.5]} 7. Be3 {[%clk 0:02:03.7]} 7... Qc7 {[%clk 0:02:51.6]} 8. Bc4 {[%clk
0:02:00.9]} 8... e6 {[%clk 0:02:51.8]} 9. Bc5 {[%clk 0:01:56.4]} 9... Ne7 {[%clk
0:02:51.1]} 10. Bd6 {[%clk 0:01:50.5]} 10... Qd8 {[%clk 0:02:49.5]} 11. O-O
{[%clk 0:01:43]} 11... O-O {[%clk 0:02:48.4]} 12. Qf3 {[%clk 0:01:12.5]} 12...
Bb7 {[%clk 0:02:38]} 13. Rad1 {[%clk 0:01:08.9]} 13... Re8 {[%clk 0:02:30.3]}
14. Na4 {[%clk 0:00:58.9]} 14... Qa5 {[%clk 0:02:06.9]} 15. Nc5 {[%clk
0:00:48.9]} 15... Qb6 {[%clk 0:01:57.8]} 16. Nxb7 {[%clk 0:00:45]} 16... Qxb7
{[%clk 0:01:57.4]} 17. Qd3 {[%clk 0:00:43.8]} 17... Nc8 {[%clk 0:01:53]} 18. Ba3
{[%clk 0:00:41]} 18... Nb6 {[%clk 0:01:51.6]} 19. Bc5 {[%clk 0:00:38.9]} 19...
Nxc4 {[%clk 0:01:48.5]} 20. Qxc4 {[%clk 0:00:39.5]} 20... d5 {[%clk 0:01:48.8]}
21. exd5 {[%clk 0:00:38.8]} 21... cxd5 {[%clk 0:01:49.1]} 22. Qd3 {[%clk
0:00:40.7]} 22... Rac8 {[%clk 0:01:44.3]} 23. Ba3 {[%clk 0:00:39.8]} 23... Qc6
{[%clk 0:01:20.9]} 24. c3 {[%clk 0:00:34.4]} 24... Bf8 {[%clk 0:01:14.2]} 25.
Bxf8 {[%clk 0:00:31.7]} 25... Rxf8 {[%clk 0:01:11.1]} 26. Qe3 {[%clk 0:00:33.6]}
26... Qa4 {[%clk 0:01:09.2]} 27. Qh6 {[%clk 0:00:32.9]} 27... Qxa2 {[%clk
0:01:05.8]} 28. Rd3 {[%clk 0:00:31.1]} 28... Qxb2 {[%clk 0:00:55]} 29. Rh3
{[%clk 0:00:33]} 29... Rfe8 {[%clk 0:00:55.3]} 30. Qxh7+ {[%clk 0:00:29]} 30...
Kf8 {[%clk 0:00:54.8]} 31. Rf3 {[%clk 0:00:28.4]} 31... Rc7 {[%clk 0:00:50]} 32.
Qxg6 {[%clk 0:00:16.7]} 32... Qxc3 {[%clk 0:00:23.4]} 33. Qh6+ {[%clk
0:00:15.8]} 33... Ke7 {[%clk 0:00:22.8]} 34. Qh7 {[%clk 0:00:13]} 34... Qc2
{[%clk 0:00:08.5]} 35. Qxf7+ {[%clk 0:00:10.9]} 35... Kd8 {[%clk 0:00:08.3]} 36.
Qf6+ {[%clk 0:00:09.7]} 36... Rce7 {[%clk 0:00:07.9]} 37. Rc3 {[%clk 0:00:06]}
37... Qh7 {[%clk 0:00:06]} 38. Qe5 {[%clk 0:00:04.2]} 38... Rh8 {[%clk
0:00:06.3]} 39. Qb8+ {[%clk 0:00:02.7]} 39... Kd7 {[%clk 0:00:06.7]} 0